Cogmind - Beta 12 @@@ ROGUE MODE // 2023.05.22 @ 20:17:09 Player: Chloroform Result: Destroyed by YI-UF0 with YI-UF0's Doublenader Performance ------------- Evolutions (0) 0 Regions Visited (2) 400 Robots Destroyed (15) 75 Value Destroyed (375) 375 Prototype IDs (2) 40 Alien Tech Used (0) 0 Bonus (0) 0 TOTAL SCORE: 890 Bonus ------- None Cogmind --------- Core Integrity 0/250 Matter 276/300 Energy 100/100 System Corruption 0% Temperature Cool (0) Movement Core (200) Ox3 Location -10/Mines Parts ------- > --- POWER (1) -------- (None) > --- PROPULSION (2) --- (None) > --- UTILITY (2) ------ Medium Storage Unit > --- WEAPON (2) ------- (None) > --- INVENTORY (10) --- Ion Engine Light Ion Engine Aluminum Leg Aluminum Leg Improved Heat Sink Large Storage Unit Small Laser Light Assault Rifle Peak State ------------ > --- POWER ------------ Ion Engine > --- PROPULSION ------- Aluminum Leg Aluminum Leg > --- UTILITY ---------- Improved Heat Sink Improved Terrain Scanner > --- WEAPON ----------- Assault Rifle Light Assault Rifle > --- INVENTORY -------- Aluminum Leg Wheel Wheel Small Laser Small Laser [Rating: 11] Favorites ----------- Power Ion Engine Engine Ion Engine Propulsion Aluminum Leg Leg Aluminum Leg Wheel Wheel Utility Medium Storage Unit Device Improved Terrain Scanner Storage Medium Storage Unit Weapon Light Assault Rifle Energy Gun Small Laser Ballistic Gun Light Assault Rifle Launcher Grenade Launcher Build | -11 -10 -10 ------- Run | Jun Mat Min Slots Evolved . | . . . Power . | . . . Propulsion . | . . . Utility . | . . . Weapon . | . . . Parts Attached 19 | 11 6 2 Power 2 | 1 1 . Engine 2 | 1 1 . Core . | . . . Reactor . | . . . Propulsion 4 | 4 . . Treads . | . . . Leg 2 | 2 . . Wheel 2 | 2 . . Hover . | . . . Flight . | . . . Utility 6 | 2 4 . Device 5 | 2 3 . Storage 1 | . 1 . Processor . | . . . Hackware . | . . . Protection . | . . . Artifact . | . . . Weapon 7 | 4 1 2 Energy Gun 1 | 1 . . Energy Cannon . | . . . Ballistic Gun 5 | 3 1 1 Ballistic Cannon . | . . . Launcher 1 | . . 1 Special Weapon . | . . . Impact Weapon . | . . . Slashing Weapon . | . . . Piercing Weapon . | . . . Special Melee Weapon . | . . . Unidentified Prototypes . | . . . Parts Lost 7 | . 1 6 Power 2 | . 1 1 Propulsion 2 | . . 2 Utility 1 | . . 1 Weapon 2 | . . 2 Highest Loss Streak 6 | . 1 6 To Critical Strikes . | . . . Average Slot Usage (%) 98 | . 98 94 Engine 13 | . 13 14 Leg 27 | . 28 27 Device 18 | . 19 13 Storage 9 | . 8 14 Ballistic Gun 26 | . 27 23 Naked Turns . | . . . Heaviest Build 21 | 8 19 21 Greatest Support 20 | 20 20 20 Greatest Overweight (x) 3 | . . 3 Average Overweight (x) . | . . . Largest Inventory Capacity 10 | 5 10 10 Average Capacity 7 | 5 7 10 Most Carried 10 | 5 10 10 Average Carried 6 | 2 7 9 Final Capacity 10 | 5 10 10 Final Carried 10 | 5 10 8 Class Distribution -------------------- 100% | Mutant Dominant Class ---------------- Mutant | -10/Materials Mutant | -10/Mines Resources | -11 -10 -10 ----------- Run | Jun Mat Min Matter Collected 488 | 302 186 . Remotely . | . . . Salvage Created 540 | 54 486 . Parts 27 | 5 22 . Haulers Intercepted . | . . . Recyclers Shooed . | . . . Parts Field Recycled . | . . . Retrieved Matter . | . . . Parts Self-Destructed . | . . . Prevented . | . . . Kills | -11 -10 -10 ------- Run | Jun Mat Min Combat Hostiles Destroyed 12 | 1 11 . Guns 12 | 1 11 . Classes Destroyed 5 | 2 3 . Tunneler 1 | 1 . . Recycler 1 | . 1 . Mechanic 1 | . 1 . Swarmer 3 | . 3 . Grunt 9 | 1 8 . Best Kill Streak 6 | 2 6 . Combat Bots Only 6 | 1 6 . Max Kills in Single Turn 1 | 1 1 . Gunslinging . | . . . Exploded . | . . . Melee . | . . . Uniques/NPCs Destroyed . | . . . Combat | -11 -10 -10 -------- Run | Jun Mat Min Damage Taken 889 | 10 320 559 Core 259 | . 61 198 Absorbed by Shields . | . . . Regen/Repaired (Parts) 61 | . 61 . Core Remaining (%) 100 | 100 . . Volleys Fired 38 | 3 35 . Largest 2 | 2 2 . Hottest 40 | 40 40 . Shots Fired 76 | 6 70 . Gun 76 | 6 70 . Cannon . | . . . Launcher . | . . . Special . | . . . Kinetic 76 | 6 70 . Thermal . | . . . Explosive . | . . . Electromagnetic . | . . . Robot Hit Streak 7 | 3 7 . Robot Miss Streak 2 | 1 2 . Penetration Max . | . . . Secondary Targets 1 | . 1 . Max Gunslinging Chain 1 | . 1 . Shots Hit Robots 46 | 3 43 . Core Hits 29 | 4 25 . Critical Kills . | . . . Critical Parts Destroyed . | . . . Critical Strikes . | . . . Melee Attacks . | . . . Impact . | . . . Slashing . | . . . Piercing . | . . . Sneak Attacks . | . . . Combat Hostiles . | . . . Follow-up Attacks . | . . . Damage Inflicted 482 | 37 445 . Guns 482 | 37 445 . Cannons . | . . . Explosions . | . . . Melee . | . . . Ramming . | . . . Kinetic 482 | 37 445 . Thermal . | . . . Explosive . | . . . Electromagnetic . | . . . Impact . | . . . Slashing . | . . . Piercing . | . . . Highest Corruption . | . . . Average Corruption . | . . . Corruption Purged . | . . . Corruption Blocked . | . . . Overload Shots . | . . . Overflow Damage . | . . . Projectiles . | . . . Explosions . | . . . Melee . | . . . Knockbacks . | . . . Impact . | . . . Kinetic . | . . . Secondary . | . . . Self-Inflicted Damage . | . . . Shots . | . . . Rammed . | . . . Targets Rammed . | . . . Kicked . | . . . Crushed . | . . . Highest Temperature 12 | 6 12 . Average Temperature 7 | 6 7 . Received Heat Transfer 174 | 6 135 33 Siege Activations . | . . . Robots Corrupted . | . . . Combat Hostiles . | . . . Parts Fried . | . . . Impact Corruptions . | . . . Robots Melted . | . . . Combat Hostiles . | . . . Parts Melted . | . . . Heat Transferred . | . . . Parts Sabotaged . | . . . Parts Stolen . | . . . Parts Stripped . | . . . Power Chain Reactions . | . . . Missiles Intercepted . | . . . Alert | -11 -10 -10 ------- Run | Jun Mat Min Peak Influence 397 | 25 397 81 Initial 81 | . 16 81 Average 178 | 5 240 77 Maximum Alert Level 1 | . 1 . Low Security (%) 49 | 100 25 100 Level 1 50 | . 74 . Level 2 . | . . . Level 3 . | . . . Level 4 . | . . . Level 5 . | . . . High Security . | . . . Max Security . | . . . Squads Dispatched 3 | . 3 . Investigation 2 | . 2 . Extermination . | . . . Reinforcement 1 | . 1 . Assault . | . . . Garrison . | . . . Intercept . | . . . Searches Triggered . | . . . Construction Impeded . | . . . Haulers Reinforced . | . . . Active Scanning Responses . | . . . Cargo Convoy Interrupts . | . . . Stealth | -11 -10 -10 --------- Run | Jun Mat Min Distress Signals 3 | . 3 . Communications Jammed . | . . . Distress Signals . | . . . Times Spotted 23 | 1 19 3 Peak Tracking Total 5 | 1 5 3 Tactical Retreats 3 | . 3 . Traps | -11 -10 -10 ------- Run | Jun Mat Min Traps Triggered . | . . . Indirectly . | . . . Trap Hack Attempts . | . . . Triggered . | . . . Disarmed . | . . . Reprogrammed . | . . . Reused . | . . . Traps Extracted . | . . . Installed . | . . . Triggered . | . . . Machines | -11 -10 -10 ---------- Run | Jun Mat Min Machines Disabled . | . . . Max in Single Turn . | . . . Machines Repaired . | . . . Machines Sabotaged . | . . . Overloaded Fab Kills . | . . . Hacking | -11 -10 -10 --------- Run | Jun Mat Min Machines Accessed 5 | . 5 . Terminals 3 | . 3 . Fabricators . | . . . Repair Stations 1 | . 1 . Recycling Units 1 | . 1 . Scanalyzers . | . . . Garrison Access . | . . . Total Hacks 20 | . 20 . Successful 10 | . 10 . Failed 10 | . 10 . Catastrophic 2 | . 2 . Database Lockouts . | . . . Manual . | . . . Terminals 10 | . 10 . Fabricators . | . . . Repair Stations 4 | . 4 . Recycling Units 6 | . 6 . Scanalyzers . | . . . Garrison Access . | . . . Terminal Hacks 6 | . 6 . Record 2 | . 2 . Robot Analysis 1 | . 1 . Prototype ID Bank 1 | . 1 . Alert Level 1 | . 1 . Dispatch Records 1 | . 1 . Fabricator Hacks . | . . . Repair Station Hacks 2 | . 2 . Scan Component 1 | . 1 . Repair 1 | . 1 . Recycling Unit Hacks 2 | . 2 . Recycle Component 1 | . 1 . Process 1 | . 1 . Scanalyzer . | . . . Garrison Access Hacks . | . . . Unauthorized Hacks . | . . . Terminals . | . . . Fabricators . | . . . Repair Stations . | . . . Recycling Units . | . . . Scanalyzers . | . . . Garrison Access . | . . . Data Cores Recovered . | . . . Used . | . . . Hacking Detections 5 | . 5 . Full Trace Events 3 | . 3 . Feedback Events . | . . . Feedback Blocked . | . . . Robot Schematics Acquired . | . . . Robots Built . | . . . Authchips . | . . . Time . | . . . Total Robot Build Rating . | . . . Part Schematics Acquired . | . . . Parts Built . | . . . Authchips . | . . . Time . | . . . Total Part Build Rating . | . . . Parts Repaired 1 | . 1 . Time 26 | . 26 . Parts Recycled 1 | . 1 . Recycled Matter 96 | . 96 . Retrieved Matter . | . . . Retrieved Components . | . . . Parts Scanalyzed . | . . . Part Schematics Acquired . | . . . Parts Damaged . | . . . Bothacking | -11 -10 -10 ------------ Run | Jun Mat Min Used RIF Installer . | . . . Robots Hacked . | . . . Non-combat . | . . . Combat . | . . . Robot Hacks Applied . | . . . Relay Couplers Released . | . . . Fabnet Peak Effective % . | . . . Robots Rewired . | . . . Allies Hacked . | . . . Hacks Repelled . | . . . Allies | -11 -10 -10 -------- Run | Jun Mat Min Total Allies . | . . . Largest Group . | . . . Highest-Rated Group . | . . . Highest-Rated Ally . | . . . Total Orders . | . . . Ally Attacks . | . . . Total Damage . | . . . Kills . | . . . Allies Corrupted . | . . . Allies Melted . | . . . Intel | -11 -10 -10 ------- Run | Jun Mat Min Robot Analysis Total 1 | . 1 . Derelict Logs Recovered . | . . . Drone Launches . | . . . Drone Recoveries . | . . . Exploration | -11 -10 -10 ------------- Run | Jun Mat Min Turns Passed 793 | 111 541 141 Spaces Moved 508 | 91 313 104 Core 25 | 24 . 1 Treads . | . . . Legs 454 | 38 313 103 Wheels 29 | 29 . . Hover . | . . . Flight . | . . . Fastest Speed 50 | 50 120 120 Average Speed 115 | 88 120 126 Slowest Speed 200 | 120 120 200 Overloaded Moves . | . . . Propulsion Burnouts . | . . . Robots Hopped . | . . . Cave-ins Triggered . | . . . Exploration Rate (%) 31 | 6 43 44 Regions Visited 2 Branch Regions 1 Pre-discovered Areas . | . . . Known Exits Taken . | . . . Unknown Exits Taken 2 | 1 1 . Scrap Searched . | . . . Spaces Dug . | . . . Terrain Destroyed . | . . . Melee . | . . . Projectile . | . . . AOE . | . . . Terrain Rammed . | . . . Walls Destroyed . | . . . Machines Disabled . | . . . Actions | -11 -10 -10 --------- Run | Jun Mat Min Total 643 | 112 416 115 Wait 52 | . 47 5 Move 506 | 90 312 104 Hop . | . . . Pick Up 20 | 8 11 1 Fast Attach 5 | 4 1 . Attach 5 | 3 1 1 Detach . | . . . Swap 9 | 4 4 1 Drop 8 | . 5 3 Fire 38 | 3 35 . Melee . | . . . Ram . | . . . Kick . | . . . Crush . | . . . Escape Stasis . | . . . Rewire . | . . . Trap . | . . . Miscellaneous . | . . . Route ------- -11/Junkyard -10/Materials (discovered 2 exits: [*Min x2]) -10/Mines History --------- Turn | Location | Event 2 | -11/Junkyard | Met Revision 17 73 | -11/Junkyard | Discovered new exit (range 8) 112 | -11/Junkyard | Entered Materials 304 | -10/Materials | Build established: Mutant 512 | -10/Materials | Discovered new exit (range 14) 615 | -10/Materials | Repaired Assault Rifle 633 | -10/Materials | Discovered new exit (range 12) 653 | -10/Materials | Entered Mines 760 | -10/Mines | YI-UF0 nonchalantly dropped a Grenade Launcher on the ground 791 | -10/Mines | Core integrity fell below 50% 793 | -10/Mines | Core integrity fell below 20% 794 | -10/Mines | Destroyed by YI-UF0 with YI-UF0's Doublenader Last Messages --------------- 00776_ T-07 Excavator destroyed. 00778_ G-34 Mercenary destroyed. 00778_ YI-UF0: "BWOOM!" 00778_ G-47 Trooper destroyed. 00779_ Dropped Seismic Detector. 00780_ Structural Scanner destroyed. 00781_ YI-UF0 mumbles something. 00783_ The unstable cave ceiling collapses. 00783_ Lgt. Ion Engine crushed. 00784_ Grenade Launcher destroyed. 00784_ Assault Rifle destroyed. 00784_ Aluminum Leg destroyed. 00787_ YI-UF0 mumbles something. 00788_ The unstable cave ceiling collapses. 00788_ YI-UF0: "BOOM!" 00788_ U-05 Engineer destroyed. 00790_ Ion Engine destroyed. 00791_ The unstable cave ceiling collapses. 00792_ Aluminum Leg destroyed. 00794_ The unstable cave ceiling collapses. Map ----- +----------------------------------------------------+ | ??????????????????????????????????????????? | | ??????????????????????????????????????????? | | ??????????????????????????????????????????? | | ??????????????????????????????????????????? | | ??????????????????????????????????????????? | | ??????????????????????????????????????????? | | ??????????????????????????????????????????? | | ??????????????????????????????????????????? | | ??????????????????????????????????????????? | | ?????????????? ??? ?????????????????????? | | ?????????????? ?? #????????????????????? | | ?????????????? ??" #????????????????????? | | ?????????????" ?"" #????????????????????? | | ????????????"" """ #????????????????????? | | ???????????? #????????????????????? | | ????????? ??"" """ #????????????????????? | | ?????????? """ """ #????????????????????? | | ###????????""" """ #????????????????????? | | #######????? ##???????????????????? | | #######???? #######?????????????? | | ###????## # ########????????????? | | ##????## # ?????????????? | | ######## # #??????????????? | | ####### # #??????????????? | | #### k ##??????????????? | | ##### ### g @ ##?????????????? | | ##### ### ##????????????? | | ##### #### ##????????????? | | ######## ##????????????? | | ##??### ##????????????? | | ### ##???## ## ###????????????? | | #### ###??### ### ####????????????? | | ##### ###?######## ###?????????????? | | ######## ###??###### #???????????????? | | # ######### ###??????? #???????????????? | | ##????### ##??????? #???????????????? | | # ##?????## ##??????? #???????????????? | | ######??????## ###??????? ????????????????? | | #####??????######??????? ????????????????? | | ?????????????####????????#????????????????? | | ??????????????????????????????????????????? | | ??????????????????????????????????????????? | | ??????????????????????????????????????????? | | ??????????????????????????????????????????? | | ??????????????????????????????????????????? | | ??????????????????????????????????????????? | | | | | | | | | +----------------------------------------------------+ Best States ------------- Heat Dissipation 39 Energy Generation 10 Energy Capacity 250 Matter Stores 300 Matter Capacity 300 Sight Range 16 Terrain Scan Range 16 Terrain Scan Density 10 Evasion (%) 55 Item Schematics ----------------- None Robot Schematics ------------------ None Fabricated ------------ Nothing Alien Tech Used ----------------- None Achievements -------------- None Challenges ------------ None Game ------ Seed AssemblyMissileSegregator Manual? 0 Play Time 00:32:31 Cumulative 1.0 hours Start 2023.05.22 @ 19:41:08 End 2023.05.22 @ 20:17:09 Sessions 2 Manual Loads 0 Difficulty Rogue Special Mode None Game No. 1 Rogue 1 Adventurer 0 Explorer 0 Win Type - Total 0 Types 0/0/0/0/0/0/0/0/0 Lore% 0 Gallery% 1 Achievement% 18 Wizard Run 0 Options --------- ASCII 0 Keyboard 0 Movement Mouse Keybinds 0 Fullscreen 1 Font 18/SmallcapsGlow Map View 76x50 Tactical HUD 1 Map Filters NONE Filters NONE Steam 1 RUN: dabb09d4-754c-4323-9f7a-105d69b920a0